bitfinex-derivatives/quotes_BTCF0:USTF0_20210404
["timestamp","ask_amount","ask_price","bid_price","bid_amount"]
[1617505621855,0.4617,57320.0,57319.0,2.72908655]
[1617505622254,0.4617,57320.0,57319.0,5.33828655]
[1617505622456,1.0,57352.0,57319.0,3.29424301]
[1617505622655,1.0,57352.0,57349.0,2.6088]
[1617505622855,0.5684849,57372.0,57349.0,2.6088]
[1617505622856,0.44667512,57361.0,57349.0,2.71613]
[1617505623255,0.44666672,57362.0,57349.0,2.71613]
[1617505623657,0.44666274,57363.0,57349.0,2.71613]
[1617505623857,0.10725655,57350.0,57349.0,2.71613]
[1617505624657,0.10725655,57350.0,57349.0,0.10733]
[1617505627868,0.10725655,57350.0,57348.0,0.10725655]
[1617505628080,0.10725655,57350.0,57335.0,1.0]
[1617505628081,2.5557,57349.0,57335.0,1.0]
[1617505628269,2.5557,57349.0,57328.0,0.14310294]
[1617505628474,2.5557,57349.0,57324.0,1.4718]
[1617505628475,1.0,57348.0,57324.0,0.4718]
[1617505628877,3.5557,57349.0,57324.0,0.4718]
[1617505629264,2.5557,57349.0,57324.0,0.4718]
[1617505629659,2.5557,57349.0,57326.0,1.0]
[1617505629859,1.0,57354.0,57340.0,0.10725655]
[1617505630059,0.44652597,57358.0,57340.0,0.10725655]
[1617505630260,3.0431,57348.0,57340.0,0.10725655]
[1617505630661,3.0431,57348.0,57342.0,1.0]
[1617505631762,3.0431,57348.0,57347.0,0.10725655]
[1617505631964,3.0431,57348.0,57347.0,1.10725655]
[1617505633964,3.0431,57348.0,57347.0,0.10725655]
[1617505637470,0.10725655,57350.0,57335.0,1.0]
[1617505637670,2.5853,57336.0,57335.0,1.0]
[1617505637869,2.69255655,57336.0,57335.0,0.10725655]
[1617505638269,2.5853,57336.0,57335.0,0.10725655]
[1617505638476,2.5853,57336.0,57335.0,1.10725655]
[1617505639470,2.5853,57336.0,57335.0,1.60725655]
[1617505639870,2.5853,57336.0,57335.0,2.60725655]
[1617505642574,2.5853,57336.0,57335.0,1.60725655]
[1617505642974,2.5853,57336.0,57335.0,2.74205655]
[1617505643878,2.5853,57336.0,57335.0,1.24205655]
[1617505644076,2.5853,57336.0,57335.0,0.10725655]
[1617505644676,2.71279,57336.0,57335.0,0.10725655]
[1617505644876,2.71279,57336.0,57325.0,0.56560686]
[1617505645276,2.71279,57336.0,57324.0,0.4718]
[1617505645875,0.10725655,57325.0,57324.0,0.4718]
[1617505646276,0.10725655,57325.0,57317.0,0.10725655]
[1617505646876,1.10725655,57325.0,57317.0,0.10725655]
[1617505647877,0.10725655,57325.0,57317.0,0.10725655]
[1617505648078,1.0,57326.0,57317.0,0.10725655]
[1617505648079,0.10725655,57318.0,57317.0,0.10725655]
[1617505648278,0.26417655,57318.0,57317.0,0.10725655]
[1617505651282,0.10725655,57318.0,57317.0,0.10725655]
[1617505651483,3.5776,57344.0,57317.0,0.10725655]
[1617505651684,3.5776,57344.0,57317.0,0.25187655]
[1617505651887,1.0,57347.0,57317.0,1.25187655]
[1617505652088,1.0,57349.0,57332.0,0.10725655]
[1617505652285,1.0,57349.0,57332.0,0.22546655]
[1617505652882,0.0525,57348.0,57332.0,0.22546655]
[1617505653698,1.0,57347.0,57332.0,0.11821]
[1617505653889,1.0,57347.0,57318.0,1.0]
[1617505654092,1.0,57339.0,57325.0,0.10725655]
[1617505654290,2.5426,57328.0,57325.0,0.10725655]
[1617505654485,2.67541,57328.0,57325.0,0.10725655]
[1617505654697,2.67541,57328.0,57308.0,1.56784562]
[1617505654886,2.67541,57328.0,57308.0,0.56784562]
[1617505655285,2.67541,57328.0,57307.0,2.8013]
[1617505656102,2.67541,57328.0,57326.0,0.10725655]
[1617505656103,2.5426,57328.0,57326.0,0.10725655]
[1617505656292,2.5426,57328.0,57326.0,0.23221655]
[1617505657687,2.5426,57328.0,57326.0,0.10725655]
[1617505658088,0.10725655,57327.0,57326.0,0.10725655]
[1617505675808,0.27611655,57327.0,57326.0,0.10725655]
[1617505677010,0.10725655,57327.0,57326.0,0.10725655]
[1617505678211,2.5426,57328.0,57326.0,0.10725655]
[1617505682817,2.5426,57328.0,57318.0,0.56974568]
[1617505683017,0.1386,57328.0,57318.0,0.56974568]
[1617505683221,0.1386,57328.0,57315.0,0.56980024]
[1617505683222,2.7003,57319.0,57315.0,0.56980024]
[1617505683622,2.7003,57319.0,57310.0,0.56981276]
[1617505684124,0.10725655,57311.0,57309.0,0.56984091]
[1617505684320,0.26960655,57311.0,57309.0,0.56984091]
[1617505684720,0.26960655,57311.0,57308.0,0.67702917]
[1617505685722,0.10725655,57311.0,57308.0,0.67702917]
[1617505685921,3.2432,57321.0,57310.0,2.6864]
[1617505686120,3.2432,57321.0,57320.0,0.10725655]
[1617505687522,3.2432,57321.0,57311.0,0.56975895]
[1617505687722,3.39202,57321.0,57310.0,2.6864]
[1617505688123,0.10725655,57311.0,57310.0,2.6864]
[1617505691230,0.10623407,57311.0,57310.0,2.6864]
[1617505691630,0.10623407,57311.0,57309.0,0.56958087]
[1617505691830,0.21925407,57311.0,57310.0,0.56957822]
[1617505692231,0.21925407,57311.0,57309.0,0.56958279]
[1617505692431,3.64515407,57311.0,57309.0,0.56958279]
[1617505692634,3.64515407,57311.0,57308.0,0.67684364]
[1617505693435,3.64515407,57311.0,57308.0,0.10725655]
[1617505694236,3.64515407,57311.0,57308.0,0.67723276]
[1617505695942,3.64515407,57311.0,57308.0,0.56997621]
[1617505696341,3.64515407,57311.0,57306.0,0.56998723]
[1617505696742,3.64515407,57311.0,57303.0,0.67728825]
[1617505697142,3.64515407,57311.0,57304.0,0.57003125]
[1617505697944,0.21925407,57311.0,57304.0,0.57003125]
[1617505698145,3.2954,57305.0,57304.0,0.57003125]
[1617505699646,3.2954,57305.0,57300.0,0.56957323]
[1617505700249,3.2954,57305.0,57303.0,0.10725655]
[1617505702348,0.10725655,57304.0,57303.0,0.10725655]
[1617505713266,3.80705655,57304.0,57303.0,0.10725655]
[1617505718075,3.80705655,57304.0,57292.0,0.56975175]
[1617505718275,0.11302,57311.0,57295.0,0.10725655]
[1617505718474,0.2,57311.0,57292.0,0.56975175]
[1617505718676,2.5568,57293.0,57290.0,0.56977787]
[1617505718875,2.70776,57293.0,57290.0,0.56977787]
[1617505719078,2.70776,57293.0,57285.0,0.56978584]
[1617505719476,2.70776,57293.0,57282.0,0.56980879]
[1617505720276,2.70776,57293.0,57283.0,0.10725655]
[1617505720677,0.15096,57293.0,57283.0,0.10725655]
[1617505720877,2.871,57300.0,57289.0,2.8791]
[1617505721077,2.871,57300.0,57289.0,3.01183]
[1617505722378,2.871,57300.0,57290.0,0.10725655]
[1617505724279,2.97825655,57300.0,57299.0,0.10725655]
[1617505727387,2.97825655,57300.0,57289.0,2.8791]
[1617505728387,2.871,57300.0,57297.0,0.10725655]
[1617505730289,0.10725655,57298.0,57297.0,0.10725655]
[1617505730888,0.10725655,57298.0,57289.0,2.8791]
[1617505732491,2.871,57300.0,57297.0,0.10725655]
[1617505732893,2.871,57300.0,57289.0,2.8791]
[1617505734397,2.871,57300.0,57297.0,0.10725655]
[1617505734895,2.871,57300.0,57289.0,2.8791]
[1617505736495,2.871,57300.0,57290.0,0.10725655]
[1617505738497,0.10725655,57291.0,57290.0,0.10725655]
[1617505738696,0.26317655,57291.0,57290.0,0.10725655]
[1617505738897,0.26317655,57291.0,57281.0,0.56965007]
[1617505739097,3.50587655,57291.0,57281.0,0.56965007]
[1617505739700,3.50587655,57291.0,57277.0,0.56966574]
[1617505740500,3.39862,57291.0,57284.0,0.10725655]
[1617505741901,0.15592,57291.0,57284.0,0.10725655]
[1617505742100,0.4708,57307.0,57284.0,0.10725655]
[1617505742101,2.7202,57304.0,57290.0,3.1724]
[1617505742500,2.7202,57304.0,57291.0,0.10725655]
[1617505744403,0.10725655,57292.0,57291.0,0.10725655]
[1617505752917,3.32565655,57292.0,57291.0,0.10725655]
[1617505754115,0.10725655,57292.0,57291.0,0.10725655]
[1617505755318,0.10725655,57292.0,57291.0,3.21025655]
[1617505756018,0.4708,57307.0,57291.0,0.10725655]
[1617505756220,0.4708,57307.0,57299.0,3.3124]
[1617505756622,0.4708,57307.0,57306.0,0.10725655]
[1617505756822,0.4708,57307.0,57306.0,0.23731655]
[1617505767333,0.4708,57307.0,57306.0,1.23731655]
[1617505767735,0.4708,57307.0,57306.0,0.23731655]
[1617505767936,0.4708,57307.0,57306.0,0.10725655]
[1617505780157,0.4708,57307.0,57306.0,0.24376655]
[1617505783662,0.4708,57307.0,57306.0,0.10725655]
[1617505785760,0.4708,57307.0,57306.0,0.26429655]
[1617505788864,0.4708,57307.0,57306.0,3.65409655]
[1617505789666,0.4708,57307.0,57306.0,3.79726999]
[1617505790867,0.4708,57307.0,57306.0,3.65409655]
[1617505795472,0.1281,57324.0,57306.0,1.76429655]
[1617505795673,0.44523272,57332.0,57307.0,0.00102253]
[1617505795874,0.44523272,57332.0,57326.0,2.6967]
[1617505796075,0.35419003,57345.0,57327.0,1.5]
[1617505796276,0.35419003,57345.0,57344.0,2.553]
[1617505796475,0.4504,57349.0,57344.0,5.20815]
[1617505796875,0.4504,57349.0,57348.0,1.10725655]
[1617505797275,0.4504,57349.0,57348.0,1.61626852]
[1617505799379,0.4504,57349.0,57348.0,2.18634085]
[1617505799577,0.4504,57349.0,57348.0,2.68634085]
[1617505799780,0.4504,57349.0,57348.0,3.77831387]
[1617505801578,0.4504,57349.0,57348.0,2.27831387]
[1617505801784,0.4504,57349.0,57348.0,1.27831387]
[1617505802381,0.4504,57349.0,57348.0,0.61626852]
[1617505802581,0.583,57349.0,57348.0,0.61626852]
[1617505803182,0.583,57349.0,57348.0,5.69066852]
[1617505803381,0.4504,57349.0,57348.0,5.69066852]
[1617505803583,0.4504,57349.0,57348.0,6.4958073]
[1617505805082,0.4504,57349.0,57348.0,4.9958073]
[1617505805684,0.4504,57349.0,57348.0,3.9958073]
[1617505805883,0.4504,57349.0,57348.0,1.27832823]
[1617505806286,0.4504,57349.0,57348.0,1.18634883]
[1617505806685,0.4504,57349.0,57348.0,0.10725655]
[1617505807085,0.4504,57349.0,57348.0,1.10725655]
[1617505807486,0.4504,57349.0,57348.0,0.10725655]
[1617505812898,0.57153,57349.0,57348.0,0.10725655]
[1617505813100,0.67878655,57349.0,57348.0,0.10725655]
[1617505821212,0.67878655,57349.0,57343.0,2.7786]
[1617505823314,0.55765655,57349.0,57348.0,0.10725655]
[1617505829323,0.67468655,57349.0,57348.0,0.10725655]
[1617505833426,0.55765655,57349.0,57348.0,0.10725655]
[1617505839031,0.55765655,57349.0,57343.0,2.7786]
[1617505841336,0.55765655,57349.0,57348.0,0.10725655]
[1617505846641,0.55765655,57349.0,57345.0,0.44614331]
[1617505847042,3.5511,57347.0,57345.0,0.44614331]
[1617505847242,1.0,57346.0,57342.0,0.44615841]
[1617505847642,0.2,57345.0,57337.0,0.44621091]
[1617505847841,3.2248,57338.0,57337.0,0.44621091]
[1617505848043,3.2248,57338.0,57331.0,0.44623317]
[1617505848442,3.2248,57338.0,57323.0,0.09201331]
[1617505848443,3.2248,57338.0,57329.0,0.44626519]
[1617505848842,3.2248,57338.0,57305.0,1.7044887]
[1617505848843,0.2,57337.0,57327.0,0.44627832]
[1617505849243,0.2,57337.0,57328.0,0.10725655]
[1617505851445,0.10725655,57329.0,57328.0,0.10725655]
[1617505851648,0.22414655,57329.0,57328.0,0.10725655]
[1617505852248,0.22414655,57329.0,57328.0,0.55351713]
[1617505856854,0.22414655,57329.0,57328.0,1.06224555]
[1617505857455,0.22414655,57329.0,57328.0,0.55351713]
[1617505858055,0.22414655,57329.0,57328.0,1.06224041]
[1617505860258,0.22414655,57329.0,57328.0,0.55351713]
[1617505861859,0.10725655,57329.0,57328.0,1.06223473]
[1617505863859,0.21619655,57329.0,57328.0,1.06223473]
[1617505866562,2.71619655,57329.0,57328.0,0.95497818]
[1617505866762,6.27499655,57329.0,57328.0,0.44626058]
[1617505866961,6.47499655,57329.0,57328.0,0.44626058]
[1617505867162,6.47499655,57329.0,57326.0,0.44789633]
[1617505867963,1.0,57327.0,57321.0,0.44702441]
[1617505868161,1.5,57326.0,57321.0,0.44702441]
[1617505868363,1.5,57326.0,57319.0,0.44702783]
[1617505868765,1.5,57326.0,57320.0,0.44702712]
[1617505869166,1.5,57326.0,57321.0,0.4470268]
[1617505869565,0.10725655,57322.0,57321.0,0.4470268]
[1617505869765,0.10725655,57322.0,57320.0,0.44702581]
[1617505870066,0.10725655,57322.0,57321.0,0.44730769]
[1617505870867,1.10725655,57322.0,57321.0,0.44730769]
[1617505871468,0.10725655,57322.0,57321.0,0.44730769]
[1617505873270,1.15875655,57322.0,57321.0,0.44730769]
[1617505874071,1.10725655,57322.0,57321.0,0.44730769]
[1617505874871,1.10725655,57322.0,57320.0,0.44730588]
[1617505875172,1.10725655,57322.0,57321.0,0.44730804]
[1617505875570,0.10725655,57322.0,57321.0,0.44730804]
[1617505875972,0.10725655,57322.0,57320.0,0.44730967]
[1617505876671,1.0,57321.0,57320.0,0.44730967]
[1617505877475,1.0,57321.0,57320.0,4.15330967]
[1617505878077,1.0,57321.0,57320.0,4.24534518]
[1617505878479,1.0,57321.0,57320.0,4.15330967]
[1617505878678,1.0,57321.0,57320.0,3.706]
[1617505880681,1.0,57321.0,57320.0,4.15300684]
[1617505880881,1.0,57321.0,57320.0,0.44700684]
[1617505881082,4.1419,57321.0,57319.0,0.44700684]
[1617505881783,4.1419,57321.0,57318.0,0.44688017]
[1617505882182,0.0521,57320.0,57318.0,0.44688017]
[1617505882683,1.0,57319.0,57318.0,0.44688017]
[1617505883984,1.0,57319.0,57317.0,0.446911]
[1617505884386,1.0,57319.0,57315.0,0.4469126]
[1617505884585,1.0,57320.0,57318.0,3.6382]
[1617505884785,0.10725655,57322.0,57318.0,3.6382]
[1617505885186,0.10725655,57322.0,57318.0,4.08510365]
[1617505885586,0.10725655,57322.0,57321.0,0.55412192]
[1617505885785,3.3259,57332.0,57321.0,0.66419192]
[1617505885985,0.1281,57338.0,57321.0,0.66419192]
[1617505886587,0.1281,57338.0,57326.0,0.44683117]
[1617505886790,0.1281,57338.0,57327.0,0.44682531]
[1617505887288,0.1281,57338.0,57335.0,3.6077]
[1617505887488,0.1281,57338.0,57335.0,3.74455]
[1617505887689,0.10725655,57336.0,57335.0,3.74455]
[1617505890993,0.10725655,57336.0,57335.0,3.6077]
[1617505891795,1.10725655,57336.0,57335.0,3.6077]
[1617505893196,0.10725655,57336.0,57335.0,3.6077]
[1617505894400,1.10725655,57336.0,57335.0,3.6077]
[1617505895698,0.10725655,57336.0,57335.0,3.6077]
[1617505895899,1.10725655,57336.0,57335.0,3.6077]
[1617505900206,0.10725655,57336.0,57335.0,3.6077]
[1617505902007,1.10725655,57336.0,57329.0,0.44752711]
[1617505902808,1.10725655,57336.0,57328.0,0.44754273]
[1617505903008,2.5372,57329.0,57328.0,0.44754273]
[1617505903808,2.64445655,57329.0,57328.0,0.44754273]
[1617505905010,2.64445655,57329.0,57328.0,0.95736321]
[1617505911518,0.10725655,57329.0,57328.0,0.95736321]
[1617505912320,3.70785655,57329.0,57328.0,0.95736321]
[1617505919029,3.82531655,57329.0,57328.0,0.95736321]
[1617505919230,4.82531655,57329.0,57328.0,0.95736321]
[1617505920833,6.37721655,57329.0,57328.0,0.95736321]
[1617505921064,6.57721655,57329.0,57328.0,0.95736321]
[1617505921452,6.57721655,57329.0,57321.0,0.51017552]
[1617505921651,6.57721655,57329.0,57321.0,0.46727552]
[1617505921855,6.57721655,57329.0,57298.0,0.89790892]
[1617505921856,1.10725655,57322.0,57307.0,0.57144439]
[1617505922048,1.5517,57321.0,57307.0,0.57144439]
[1617505922256,1.5517,57321.0,57316.0,3.728]
[1617505923038,1.5,57321.0,57316.0,3.728]
[1617505923237,1.0,57317.0,57316.0,3.728]
[1617505923637,1.0,57317.0,57300.0,0.71373091]
[1617505923837,1.0,57317.0,57286.0,2.10112871]
[1617505923838,1.15627,57317.0,57310.0,0.10725655]
[1617505924038,3.5714,57309.0,57301.0,0.57053596]
[1617505924238,3.5714,57309.0,57297.0,2.8984]
[1617505924239,3.5714,57309.0,57300.0,0.57055131]
[1617505924639,3.5714,57309.0,57299.0,0.57055471]
[1617505925041,3.5714,57309.0,57298.0,0.5705511]
[1617505925843,3.5714,57309.0,57300.0,0.10725655]
[1617505927242,4.5714,57309.0,57300.0,0.10725655]
[1617505927444,3.5714,57309.0,57300.0,0.10725655]
[1617505927845,0.10725655,57301.0,57300.0,0.10725655]
[1617505929043,0.10725655,57301.0,57297.0,0.570293]
[1617505929444,0.10725655,57301.0,57282.0,0.4893]
[1617505929445,2.86634753,57297.0,57296.0,0.57030086]
[1617505929846,0.10725655,57301.0,57296.0,0.10725655]
[1617505930045,0.10725655,57301.0,57300.0,3.1826]
[1617505931649,0.10725655,57301.0,57300.0,3.75287511]
[1617505932351,0.10725655,57301.0,57300.0,3.1826]
[1617505932852,0.10725655,57301.0,57300.0,3.75286393]
[1617505935455,0.10725655,57301.0,57300.0,3.1826]
[1617505935654,0.10725655,57301.0,57300.0,3.75287239]
[1617505936858,0.10725655,57301.0,57300.0,4.26204153]
[1617505938857,0.21599655,57301.0,57300.0,4.26204153]
[1617505939358,0.21599655,57301.0,57300.0,3.69176914]
[1617505943363,0.10725655,57301.0,57300.0,3.69176914]
[1617505943563,3.3717,57312.0,57300.0,3.69176914]
[1617505943963,3.3717,57312.0,57308.0,0.50885425]
[1617505944364,3.3717,57312.0,57310.0,0.50884495]
[1617505945063,3.3717,57312.0,57311.0,0.50883085]
[1617505945966,3.47895655,57312.0,57311.0,0.50883085]
[1617505948470,3.47895655,57312.0,57309.0,0.50883869]
[1617505948669,3.61143655,57312.0,57309.0,0.50883869]
[1617505949670,3.61143655,57312.0,57308.0,0.50876971]
[1617505951074,3.61143655,57312.0,57307.0,0.50877853]
[1617505951675,3.61143655,57312.0,57309.0,0.50901432]
[1617505952075,3.61143655,57312.0,57310.0,0.50900603]
[1617505955881,3.61143655,57312.0,57309.0,0.50900798]
[1617505957386,4.61143655,57312.0,57309.0,0.50900798]
[1617505960393,4.61143655,57312.0,57310.0,0.50928111]
[1617505961895,3.61143655,57312.0,57310.0,0.50928111]
[1617505962496,1.0,57311.0,57310.0,0.50928111]
[1617505962698,1.0,57311.0,57309.0,0.50958028]
[1617505963097,1.0,57311.0,57305.0,0.50958962]
[1617505963497,1.0,57310.0,57304.0,0.50959003]
[1617505963897,1.0,57310.0,57303.0,0.50959182]
[1617505964098,0.10725655,57305.0,57303.0,0.50959182]
[1617505964299,0.10725655,57305.0,57304.0,0.50959404]
[1617505964898,1.10725655,57305.0,57304.0,0.50959404]
[1617505965399,0.10725655,57305.0,57304.0,0.50959404]
[1617505969303,0.10725655,57305.0,57303.0,0.5095968]
[1617505971105,0.10725655,57305.0,57304.0,0.51093706]
[1617505981217,1.10725655,57305.0,57304.0,0.51093706]
[1617505981619,2.60725655,57305.0,57304.0,0.51093706]
[1617505981820,2.60725655,57305.0,57304.0,0.48343706]
[1617505982019,2.60725655,57305.0,57282.0,1.38804297]
[1617505982020,2.9208,57291.0,57290.0,0.57198751]
[1617505982219,3.02608,57291.0,57290.0,0.57198751]
[1617505982419,3.02608,57291.0,57282.0,0.4893]
[1617505982420,3.02608,57291.0,57286.0,0.571906]
[1617505983622,3.02608,57291.0,57285.0,0.57191563]
[1617505984022,0.10725655,57286.0,57285.0,0.57191563]
[1617505985122,0.10725655,57286.0,57278.0,0.57015546]
[1617505985324,2.6209,57283.0,57278.0,0.57015546]
[1617505986124,0.10725655,57279.0,57278.0,0.57015546]
[1617505986323,0.25588655,57279.0,57278.0,0.57015546]
[1617505986827,0.25486351,57279.0,57278.0,0.57015546]
[1617505990730,0.25486351,57279.0,57277.0,0.56979124]
[1617505992833,0.25486351,57279.0,57278.0,0.56979159]
[1617505993334,0.25486351,57279.0,57277.0,0.56979114]
[1617505993734,0.25486351,57279.0,57278.0,0.56979222]
[1617505994234,0.25486351,57279.0,57277.0,0.56979436]
[1617505994636,0.25486351,57279.0,57275.0,0.56982161]
[1617505995236,2.7556,57276.0,57275.0,0.56982161]
[1617505995436,2.7556,57276.0,57272.0,0.56986346]
[1617505995737,2.7556,57276.0,57270.0,0.56986179]
[1617505997036,2.7556,57276.0,57275.0,0.50880736]
[1617505998540,0.25486351,57279.0,57278.0,3.226]
[1617505998739,0.10623351,57279.0,57278.0,3.226]
[1617505998941,0.10623351,57279.0,57278.0,3.826875]
[1617505999542,0.10528,57291.0,57278.0,3.826875]
[1617505999743,2.732,57292.0,57278.0,3.826875]
[1617506000142,2.732,57292.0,57286.0,0.10725655]
[1617506002144,0.10725655,57287.0,57286.0,0.10725655]
[1617506008650,0.10725655,57287.0,57284.0,0.50857843]
[1617506008849,0.10725655,57287.0,57283.0,0.50858186]
[1617506009551,0.10725655,57287.0,57282.0,0.50858461]
[1617506009951,0.10725655,57287.0,57283.0,0.50858644]
[1617506010552,0.10725655,57287.0,57279.0,0.09208025]
[1617506010553,0.10725655,57287.0,57281.0,0.50858785]
[1617506011354,0.10725655,57287.0,57283.0,0.50858369]
[1617506012153,0.10725655,57287.0,57285.0,0.10725655]
[1617506017758,0.10725655,57287.0,57283.0,0.50885794]
[1617506020260,0.10725655,57287.0,57285.0,0.10725655]
[1617506021060,0.10725655,57287.0,57284.0,0.50885351]
[1617506021266,0.10725655,57287.0,57282.0,0.50887071]
[1617506021267,0.26725655,57287.0,57282.0,0.50887071]
[1617506021662,3.3857,57282.0,57281.0,0.50887094]
[1617506022064,3.3857,57282.0,57280.0,0.50888318]
[1617506022264,0.10725655,57281.0,57280.0,0.50888318]
[1617506022664,0.10725655,57281.0,57274.0,0.57082929]
[1617506023063,0.10725655,57281.0,57280.0,0.50966892]
[1617506024064,3.56285655,57281.0,57280.0,0.50966892]
[1617506027172,0.10725655,57281.0,57280.0,0.50966892]
[1617506027371,0.10725655,57281.0,57280.0,3.39216892]
[1617506027574,0.10725655,57281.0,57280.0,4.39216892]
[1617506027771,0.4841,57299.0,57280.0,3.00966892]
[1617506027972,0.4841,57299.0,57296.0,3.6328]
[1617506028172,0.4841,57299.0,57296.0,3.77871]
[1617506028372,0.4841,57299.0,57298.0,0.10725655]
[1617506029575,3.9003,57299.0,57298.0,0.10725655]
[1617506030277,4.00755655,57299.0,57298.0,0.10725655]
[1617506031780,4.00755655,57299.0,57291.0,0.50957584]
[1617506031980,4.12012655,57299.0,57290.0,0.50958315]
[1617506032381,0.10725655,57291.0,57289.0,0.50958524]
[1617506033282,0.10725655,57291.0,57288.0,0.50959334]
[1617506033682,0.10725655,57291.0,57287.0,0.19933392]
[1617506033683,0.10725655,57291.0,57290.0,0.51080945]
[1617506037588,0.10725655,57291.0,57287.0,0.09207737]
[1617506039303,3.3671,57290.0,57289.0,0.51087856]
[1617506039692,3.3671,57290.0,57281.0,0.57218399]
[1617506040096,1.0,57289.0,57288.0,0.51088491]
[1617506041594,2.6904,57289.0,57288.0,0.51088491]
[1617506042195,2.6904,57289.0,57288.0,0.49768491]
[1617506044393,2.6904,57289.0,57288.0,0.60494146]
[1617506045000,0.4841,57299.0,57288.0,0.60494146]
[1617506045197,0.4841,57299.0,57295.0,3.5732]
[1617506045997,0.4841,57299.0,57296.0,0.09207777]
[1617506046398,0.10725655,57297.0,57296.0,0.09207777]
[1617506049803,0.10725655,57297.0,57285.0,0.10725655]
[1617506050206,0.55273396,57297.0,57285.0,0.10725655]
[1617506050405,2.6494,57286.0,57285.0,0.10725655]
[1617506050606,2.75665655,57286.0,57285.0,0.10725655]
[1617506057317,2.75665655,57286.0,57285.0,0.61821697]
[1617506059019,2.75665655,57286.0,57285.0,0.10725655]
[1617506066528,2.6494,57286.0,57285.0,0.10725655]
[1617506068333,0.10725655,57292.0,57285.0,0.10725655]
[1617506068533,0.44549867,57294.0,57291.0,2.81045655]
[1617506068733,0.44549867,57294.0,57292.0,1.5]
[1617506068933,0.4841,57299.0,57292.0,1.5]
[1617506068934,0.44564913,57296.0,57292.0,1.5]
[1617506069132,0.44564913,57296.0,57293.0,1.0]
[1617506069333,0.4841,57299.0,57294.0,1.5]
[1617506069532,0.4841,57299.0,57298.0,3.6614]
[1617506069732,0.4841,57299.0,57298.0,6.29364]
[1617506070133,0.4841,57299.0,57298.0,6.43683979]
[1617506070533,0.4841,57299.0,57298.0,6.54409634]
[1617506072334,0.44574883,57321.0,57298.0,6.54409634]
[1617506072534,0.44574883,57321.0,57320.0,0.10725655]
[1617506072735,0.1281,57325.0,57320.0,0.23414655]
[1617506072736,0.44564105,57324.0,57320.0,0.23414655]
[1617506072934,0.44564105,57324.0,57320.0,3.82704655]
[1617506073135,0.1281,57325.0,57320.0,3.82704655]
[1617506073736,0.1281,57325.0,57324.0,1.0]
[1617506073936,0.1281,57325.0,57324.0,2.5]
[1617506074735,0.89846382,57337.0,57324.0,2.5]
[1617506074936,0.89846382,57337.0,57336.0,2.8907]
[1617506075136,0.89846382,57337.0,57336.0,3.02311]
[1617506075338,0.4518,57337.0,57336.0,1.13241]
[1617506076537,0.4518,57337.0,57336.0,1.23966655]
[1617506078443,0.44701506,57342.0,57336.0,1.73966655]
[1617506078841,0.4473351,57346.0,57336.0,2.73966655]
[1617506079041,0.4473351,57346.0,57341.0,3.766]
[1617506079242,0.4474829,57348.0,57341.0,2.766]
[1617506079443,0.4474829,57348.0,57345.0,1.0]
[1617506079643,0.4474829,57348.0,57341.0,2.766]
[1617506079644,0.4474829,57348.0,57347.0,1.0]
[1617506080443,0.4474829,57348.0,57341.0,2.766]
[1617506080643,0.44760312,57349.0,57347.0,0.10725655]
[1617506081045,0.10725655,57352.0,57348.0,2.9431]
[1617506081443,0.44742245,57349.0,57348.0,2.9431]
[1617506082244,0.10725655,57352.0,57348.0,2.9431]
[1617506082443,0.10725655,57352.0,57348.0,3.08125]
[1617506086448,0.10725655,57352.0,57348.0,0.13815]
[1617506086649,0.10725655,57352.0,57341.0,0.10725655]
[1617506086859,2.5363,57349.0,57341.0,0.10725655]
[1617506087061,0.26976655,57352.0,57328.0,1.0]
[1617506087262,2.5369,57337.0,57323.0,1.5]
[1617506087452,2.66075,57337.0,57324.0,1.0]
[1617506087950,2.66075,57337.0,57325.0,1.0]
[1617506088752,2.66075,57337.0,57335.0,0.10725655]
[1617506090152,0.12385,57337.0,57335.0,0.10725655]
[1617506090353,0.44377822,57352.0,57336.0,1.0]
[1617506090553,0.44422449,57353.0,57351.0,3.7085]
[1617506090752,0.44422449,57353.0,57351.0,3.94166655]
[1617506090953,0.44432349,57354.0,57351.0,3.94166655]
[1617506091753,0.93742057,57355.0,57351.0,3.94166655]
[1617506092653,0.10725655,57352.0,57351.0,3.94166655]
[1617506095358,0.10725655,57352.0,57351.0,3.7085]
[1617506098764,0.10725655,57352.0,57351.0,3.81575655]
[1617506100766,0.10725655,57352.0,57351.0,3.96313655]
[1617506102065,0.10725655,57352.0,57351.0,3.81575655]
[1617506104168,0.10725655,57352.0,57351.0,3.7085]
[1617506119578,0.10725655,57352.0,57347.0,0.15691]
[1617506119780,0.55439528,57352.0,57347.0,0.15691]
[1617506120181,0.44713114,57348.0,57347.0,0.15691]
[1617506120378,0.44713114,57348.0,57339.0,3.4875]
[1617506120779,0.10725655,57340.0,57339.0,3.4875]
[1617506131396,1.06800648,57340.0,57339.0,3.4875]
[1617506131896,0.55697581,57340.0,57339.0,3.4875]
[1617506136800,0.55697581,57340.0,57338.0,0.10725655]
[1617506136999,3.44097581,57340.0,57330.0,0.10725655]
[1617506137401,1.0,57339.0,57330.0,0.10725655]
[1617506138002,1.0,57337.0,57330.0,0.10725655]
[1617506138404,3.44097581,57340.0,57330.0,0.10725655]
[1617506138905,0.10725655,57331.0,57330.0,0.10725655]
[1617506141713,0.10725655,57331.0,57330.0,3.28735655]
[1617506141913,0.55701886,57331.0,57330.0,3.28735655]
[1617506144716,0.55701886,57331.0,57330.0,0.10725655]
[1617506147018,0.10725655,57331.0,57330.0,0.10725655]
[1617506147417,0.21984655,57331.0,57330.0,0.10725655]
[1617506148017,0.66886114,57331.0,57330.0,0.10725655]
[1617506150218,0.66886114,57331.0,57310.0,0.56648134]
[1617506150618,5.43316114,57331.0,57310.0,0.56648134]
[1617506151120,5.32590459,57331.0,57316.0,0.10725655]
[1617506151318,1.0,57323.0,57316.0,0.10725655]
[1617506151519,1.0,57329.0,57316.0,0.10725655]
[1617506152722,3.0143,57327.0,57318.0,3.235]
[1617506153021,0.10725655,57319.0,57318.0,3.235]
[1617506153224,0.27295655,57319.0,57318.0,3.235]
[1617506156530,0.10725655,57319.0,57318.0,3.235]
[1617506164737,0.10725655,57319.0,57316.0,0.10725655]
[1617506164936,3.2254,57317.0,57316.0,0.10725655]
[1617506165538,3.2254,57317.0,57311.0,3.2767]
[1617506167138,3.2254,57317.0,57314.0,0.10725655]
[1617506169038,0.10725655,57315.0,57314.0,0.10725655]